[Event "Early-Titled-Tuesday-Blitz-March-05-2024"]
[Site "Chess.com"]
[Date "2024.03.05"]
[Round "3"]
[White "ElVital"]
[Black "Capiberibe"]
[Result "1-0"]
[WhiteElo "2349"]
[BlackElo "1993"]
[TimeControl "180+1"]
[EndTime "8:28:01 PST"]
[Termination "ElVital won by resignation"]

1. e4 {[%clk 0:03:00.9]} 1... c5 {[%clk 0:02:59.5]} 2. Nf3 {[%clk 0:02:58.5]}
2... d6 {[%clk 0:02:59]} 3. d4 {[%clk 0:02:56.8]} 3... cxd4 {[%clk 0:02:58.8]}
4. Nxd4 {[%clk 0:02:56.4]} 4... Nf6 {[%clk 0:02:59.2]} 5. Nc3 {[%clk 0:02:56.1]}
5... Nc6 {[%clk 0:02:59.4]} 6. Bg5 {[%clk 0:02:52.4]} 6... Bd7 {[%clk 0:02:59]}
7. Qd2 {[%clk 0:02:50.7]} 7... Rc8 {[%clk 0:02:57]} 8. Nb3 {[%clk 0:02:50.6]}
8... Na5 {[%clk 0:02:52.1]} 9. Bxf6 {[%clk 0:02:44.3]} 9... gxf6 {[%clk
0:02:46.5]} 10. Nd5 {[%clk 0:02:43.3]} 10... Nc4 {[%clk 0:02:33.2]} 11. Qd4
{[%clk 0:02:38.7]} 11... Nb6 {[%clk 0:02:18]} 12. Ne3 {[%clk 0:02:37.1]} 12...
Bg7 {[%clk 0:02:10.5]} 13. a4 {[%clk 0:02:30.6]} 13... a6 {[%clk 0:02:04.4]} 14.
a5 {[%clk 0:02:29.2]} 14... Na8 {[%clk 0:02:04]} 15. Bc4 {[%clk 0:02:20.6]}
15... Nc7 {[%clk 0:01:56.3]} 16. Qd2 {[%clk 0:02:19.5]} 16... Ne6 {[%clk
0:01:50.1]} 17. Bd5 {[%clk 0:02:15.5]} 17... Bc6 {[%clk 0:01:22.7]} 18. Nf5
{[%clk 0:02:10.2]} 18... O-O {[%clk 0:01:14.2]} 19. O-O {[%clk 0:02:08.3]} 19...
Bxd5 {[%clk 0:01:13.9]} 20. exd5 {[%clk 0:02:08.4]} 20... Nc5 {[%clk 0:01:13.6]}
21. Rfe1 {[%clk 0:02:05.7]} 21... Nxb3 {[%clk 0:01:10.3]} 22. cxb3 {[%clk
0:02:05.3]} 22... Kh8 {[%clk 0:01:02.4]} 1-0

[Event "Early-Titled-Tuesday-Blitz-March-05-2024"]
[Site "Chess.com"]
[Date "2024.03.05"]
[Round "3"]
[White "xakevicius91"]
[Black "dealshark"]
[Result "1-0"]
[WhiteElo "2559"]
[BlackElo "2329"]
[TimeControl "180+1"]
[EndTime "8:28:05 PST"]
[Termination "xakevicius91 won by resignation"]

1. e4 {[%clk 0:03:00.9]} 1... c6 {[%clk 0:02:59]} 2. d4 {[%clk 0:03:00.6]} 2...
d5 {[%clk 0:02:59.2]} 3. e5 {[%clk 0:03:01.2]} 3... Bf5 {[%clk 0:02:59]} 4. Nd2
{[%clk 0:03:01.6]} 4... e6 {[%clk 0:02:58.5]} 5. Nb3 {[%clk 0:03:02.3]} 5... Ne7
{[%clk 0:02:57.3]} 6. Nf3 {[%clk 0:03:02.9]} 6... Nd7 {[%clk 0:02:56.7]} 7. Be2
{[%clk 0:03:03.5]} 7... c5 {[%clk 0:02:56.5]} 8. dxc5 {[%clk 0:03:02.5]} 8...
Nc6 {[%clk 0:02:56.1]} 9. Nfd4 {[%clk 0:02:55.9]} 9... Bg6 {[%clk 0:02:46.5]}
10. Nxc6 {[%clk 0:02:54.8]} 10... bxc6 {[%clk 0:02:46.3]} 11. f4 {[%clk
0:02:55.4]} 11... Nxc5 {[%clk 0:02:38.7]} 12. Be3 {[%clk 0:02:46.6]} 12... Ne4
{[%clk 0:02:26.8]} 13. O-O {[%clk 0:02:46.2]} 13... Be7 {[%clk 0:02:25.7]} 14.
g4 {[%clk 0:02:42.3]} 14... h6 {[%clk 0:02:15.1]} 15. f5 {[%clk 0:02:39]} 15...
Bh7 {[%clk 0:02:07.9]} 16. Nd2 {[%clk 0:02:37]} 16... Bg5 {[%clk 0:01:57.9]} 17.
Bxg5 {[%clk 0:02:36.9]} 17... Qxg5 {[%clk 0:01:33.4]} 18. Nxe4 {[%clk 0:02:35]}
18... dxe4 {[%clk 0:01:33.8]} 19. Qd6 {[%clk 0:02:20.5]} 19... Qe3+ {[%clk
0:01:11.9]} 20. Rf2 {[%clk 0:02:19.4]} 20... Qb6 {[%clk 0:01:07.1]} 21. fxe6
{[%clk 0:02:17]} 21... fxe6 {[%clk 0:00:58.4]} 22. Qxe6+ {[%clk 0:02:14.9]}
22... Kd8 {[%clk 0:00:58.6]} 23. Rd1+ {[%clk 0:02:15.5]} 23... Kc7 {[%clk
0:00:56.7]} 24. Rd7+ {[%clk 0:02:13.1]} 24... Kb8 {[%clk 0:00:56]} 25. Qd6+
{[%clk 0:02:11.5]} 25... Qc7 {[%clk 0:00:54.3]} 1-0

[Event "Early-Titled-Tuesday-Blitz-March-05-2024"]
[Site "Chess.com"]
[Date "2024.03.05"]
[Round "3"]
[White "Smoking_Crow"]
[Black "Rosh1610"]
[Result "1-0"]
[WhiteElo "2615"]
[BlackElo "2443"]
[TimeControl "180+1"]
[EndTime "8:28:14 PST"]
[Termination "Smoking_Crow won by resignation"]

1. e4 {[%clk 0:03:00.6]} 1... c5 {[%clk 0:02:55.9]} 2. Nf3 {[%clk 0:02:58]} 2...
d6 {[%clk 0:02:55.5]} 3. Bb5+ {[%clk 0:02:57]} 3... Nd7 {[%clk 0:02:55]} 4. d4
{[%clk 0:02:55.1]} 4... cxd4 {[%clk 0:02:54]} 5. Qxd4 {[%clk 0:02:56]} 5... Nf6
{[%clk 0:02:53.7]} 6. Bg5 {[%clk 0:02:55.3]} 6... a6 {[%clk 0:02:52.5]} 7. Bxd7+
{[%clk 0:02:54.9]} 7... Bxd7 {[%clk 0:02:51.6]} 8. Nc3 {[%clk 0:02:51.7]} 8...
e6 {[%clk 0:02:50.6]} 9. O-O-O {[%clk 0:02:46.6]} 9... Be7 {[%clk 0:02:50.1]}
10. e5 {[%clk 0:02:45.1]} 10... dxe5 {[%clk 0:02:49.1]} 11. Nxe5 {[%clk
0:02:46]} 11... Bc6 {[%clk 0:02:43.1]} 12. Nxc6 {[%clk 0:02:18.4]} 12... bxc6
{[%clk 0:02:42.3]} 13. Qc4 {[%clk 0:02:15.3]} 13... Qc7 {[%clk 0:02:40.5]} 14.
Bf4 {[%clk 0:02:12.4]} 14... Qb7 {[%clk 0:02:31.8]} 15. Be5 {[%clk 0:02:10.4]}
15... O-O {[%clk 0:02:25.3]} 16. h4 {[%clk 0:02:03.1]} 16... Qb4 {[%clk
0:02:14.7]} 17. Qxb4 {[%clk 0:02:01.4]} 17... Bxb4 {[%clk 0:02:15.6]} 18. Na4
{[%clk 0:02:01.5]} 18... Ng4 {[%clk 0:02:06.9]} 19. Bg3 {[%clk 0:01:51.1]} 19...
f6 {[%clk 0:02:01.3]} 20. Rd4 {[%clk 0:01:48.3]} 20... c5 {[%clk 0:01:33.6]} 21.
Rxg4 {[%clk 0:01:45.8]} 21... Rac8 {[%clk 0:01:29.9]} 22. Rc4 {[%clk 0:01:45.3]}
22... e5 {[%clk 0:01:28.8]} 23. Rd1 {[%clk 0:01:43]} 23... Rfd8 {[%clk
0:01:28.2]} 24. Rxd8+ {[%clk 0:01:41.2]} 24... Rxd8 {[%clk 0:01:29.1]} 25. c3
{[%clk 0:01:41.9]} 25... Ba5 {[%clk 0:01:28.2]} 26. Rxc5 {[%clk 0:01:42.3]} 1-0

[Event "Early-Titled-Tuesday-Blitz-March-05-2024"]
[Site "Chess.com"]
[Date "2024.03.05"]
[Round "3"]
[White "balack95"]
[Black "LornerAcosta"]
[Result "0-1"]
[WhiteElo "2458"]
[BlackElo "2629"]
[TimeControl "180+1"]
[EndTime "8:28:23 PST"]
[Termination "LornerAcosta won by resignation"]

1. d4 {[%clk 0:03:00.9]} 1... d5 {[%clk 0:02:59]} 2. c4 {[%clk 0:03:01.3]} 2...
e6 {[%clk 0:02:57.9]} 3. Nc3 {[%clk 0:03:01.7]} 3... Nf6 {[%clk 0:02:56.8]} 4.
cxd5 {[%clk 0:03:02.1]} 4... exd5 {[%clk 0:02:56.7]} 5. Bg5 {[%clk 0:03:02.7]}
5... Nbd7 {[%clk 0:02:55.6]} 6. e3 {[%clk 0:03:02.5]} 6... c6 {[%clk 0:02:55.2]}
7. Bd3 {[%clk 0:03:01.1]} 7... Be7 {[%clk 0:02:55]} 8. Nge2 {[%clk 0:03:01.6]}
8... O-O {[%clk 0:02:54.8]} 9. Qc2 {[%clk 0:03:02.1]} 9... Re8 {[%clk
0:02:54.7]} 10. f3 {[%clk 0:03:01.9]} 10... Nf8 {[%clk 0:02:53.4]} 11. O-O
{[%clk 0:03:02.3]} 11... Ng6 {[%clk 0:02:53.3]} 12. Rae1 {[%clk 0:02:58.5]}
12... Be6 {[%clk 0:02:51]} 13. e4 {[%clk 0:02:39.6]} 13... dxe4 {[%clk
0:02:50.2]} 14. fxe4 {[%clk 0:02:40.1]} 14... Ng4 {[%clk 0:02:48.3]} 15. Bc1
{[%clk 0:02:29.3]} 15... c5 {[%clk 0:02:23]} 16. d5 {[%clk 0:02:23.1]} 16... Bd7
{[%clk 0:02:22.7]} 17. h3 {[%clk 0:02:08.3]} 17... N4e5 {[%clk 0:02:21.7]} 18.
Ng3 {[%clk 0:02:05.7]} 18... c4 {[%clk 0:02:05.1]} 19. Be2 {[%clk 0:02:04.6]}
19... b5 {[%clk 0:02:05.7]} 20. Kh1 {[%clk 0:01:51.6]} 20... Bh4 {[%clk
0:02:03.9]} 21. Kh2 {[%clk 0:01:48.1]} 21... Qc7 {[%clk 0:01:56.7]} 22. d6
{[%clk 0:01:33.1]} 22... Qxd6 {[%clk 0:01:53.1]} 23. Rd1 {[%clk 0:01:25.1]}
23... Bxg3+ {[%clk 0:01:45.7]} 24. Kxg3 {[%clk 0:01:25.4]} 24... Nd3+ {[%clk
0:01:45.7]} 25. Kf3 {[%clk 0:01:24.5]} 25... Nh4+ {[%clk 0:01:28.5]} 26. Ke3
{[%clk 0:01:24.8]} 26... Nxg2+ {[%clk 0:01:28.7]} 27. Kd2 {[%clk 0:01:24.3]}
27... Qh6+ {[%clk 0:01:28]} 0-1

[Event "Early-Titled-Tuesday-Blitz-March-05-2024"]
[Site "Chess.com"]
[Date "2024.03.05"]
[Round "3"]
[White "Willi_Skibbe"]
[Black "dzhumagaliev"]
[Result "0-1"]
[WhiteElo "2312"]
[BlackElo "2725"]
[TimeControl "180+1"]
[EndTime "8:28:27 PST"]
[Termination "dzhumagaliev won by resignation"]

1. d4 {[%clk 0:02:56.4]} 1... h5 {[%clk 0:03:00.6]} 2. e4 {[%clk 0:02:51.6]}
2... h4 {[%clk 0:03:01.5]} 3. h3 {[%clk 0:02:50.7]} 3... c6 {[%clk 0:03:02.4]}
4. Nf3 {[%clk 0:02:44]} 4... d5 {[%clk 0:03:03.3]} 5. Nc3 {[%clk 0:02:42.7]}
5... dxe4 {[%clk 0:02:57.3]} 6. Nxe4 {[%clk 0:02:43.6]} 6... Bf5 {[%clk
0:02:57.5]} 7. Bd3 {[%clk 0:02:41.1]} 7... Nf6 {[%clk 0:02:57.8]} 8. Nxf6+
{[%clk 0:02:39.2]} 8... gxf6 {[%clk 0:02:58.7]} 9. Bxf5 {[%clk 0:02:37]} 9...
Qa5+ {[%clk 0:02:59.2]} 10. Bd2 {[%clk 0:02:35.5]} 10... Qxf5 {[%clk 0:02:59.8]}
11. O-O {[%clk 0:02:27.1]} 11... Rg8 {[%clk 0:02:59.6]} 12. Kh1 {[%clk
0:02:24.7]} 12... Nd7 {[%clk 0:02:59.3]} 13. Nxh4 {[%clk 0:02:19.8]} 13... Qd5
{[%clk 0:02:53.1]} 14. Be3 {[%clk 0:02:12.7]} 14... e6 {[%clk 0:02:51.8]} 15.
Nf3 {[%clk 0:02:10.8]} 15... Bd6 {[%clk 0:02:50.6]} 16. Qd3 {[%clk 0:02:07.1]}
16... O-O-O {[%clk 0:02:47]} 17. c4 {[%clk 0:02:07.2]} 17... Qh5 {[%clk
0:02:46.7]} 18. Qe4 {[%clk 0:01:56.2]} 18... Rxg2 {[%clk 0:02:37.9]} 19. Kxg2
{[%clk 0:01:40.7]} 19... Rg8+ {[%clk 0:02:37.3]} 20. Ng5 {[%clk 0:01:38.8]}
20... fxg5 {[%clk 0:02:29.4]} 21. Qg4 {[%clk 0:01:36.5]} 21... Qh7 {[%clk
0:02:22.8]} 22. d5 {[%clk 0:01:34.2]} 22... Ne5 {[%clk 0:02:13.9]} 23. Qe2
{[%clk 0:01:17.4]} 23... g4 {[%clk 0:02:10.3]} 24. h4 {[%clk 0:01:11]} 24...
Qe4+ {[%clk 0:02:08.8]} 0-1

[Event "Early-Titled-Tuesday-Blitz-March-05-2024"]
[Site "Chess.com"]
[Date "2024.03.05"]
[Round "3"]
[White "arnash_bauyrzhan"]
[Black "JonasEilenberg"]
[Result "0-1"]
[WhiteElo "2321"]
[BlackElo "2551"]
[TimeControl "180+1"]
[EndTime "8:28:28 PST"]
[Termination "JonasEilenberg won by resignation"]

1. e4 {[%clk 0:03:00.9]} 1... c5 {[%clk 0:02:59.8]} 2. Nf3 {[%clk 0:03:00.3]}
2... Nc6 {[%clk 0:03:00.1]} 3. Bb5 {[%clk 0:02:59.2]} 3... g6 {[%clk 0:02:59.8]}
4. O-O {[%clk 0:02:58.4]} 4... Bg7 {[%clk 0:02:59.9]} 5. Re1 {[%clk 0:02:58.6]}
5... e5 {[%clk 0:03:00]} 6. c3 {[%clk 0:02:58.3]} 6... Nge7 {[%clk 0:03:00.5]}
7. Bf1 {[%clk 0:02:47.7]} 7... O-O {[%clk 0:02:59.9]} 8. d3 {[%clk 0:02:46.9]}
8... d6 {[%clk 0:03:00]} 9. h3 {[%clk 0:02:44.9]} 9... h6 {[%clk 0:02:59.3]} 10.
Be3 {[%clk 0:02:41.5]} 10... Kh7 {[%clk 0:02:59.2]} 11. d4 {[%clk 0:02:40.1]}
11... cxd4 {[%clk 0:02:46.9]} 12. cxd4 {[%clk 0:02:39.5]} 12... f5 {[%clk
0:02:47.8]} 13. dxe5 {[%clk 0:02:25]} 13... fxe4 {[%clk 0:02:47.7]} 14. exd6
{[%clk 0:02:12.1]} 14... Nf5 {[%clk 0:02:42.2]} 15. Nfd2 {[%clk 0:02:01.7]}
15... Bxb2 {[%clk 0:02:42.1]} 16. Nxe4 {[%clk 0:01:31.9]} 16... Bxa1 {[%clk
0:02:41.3]} 17. Na3 {[%clk 0:01:10.2]} 17... Bg7 {[%clk 0:02:37.7]} 18. Nb5
{[%clk 0:01:04.3]} 18... Bd7 {[%clk 0:02:34]} 19. g4 {[%clk 0:01:02.9]} 19...
Nxe3 {[%clk 0:02:33.2]} 20. Rxe3 {[%clk 0:01:01.2]} 20... Rc8 {[%clk 0:02:32.3]}
21. Qd5 {[%clk 0:00:50.6]} 21... Ne5 {[%clk 0:02:21.9]} 22. Nc7 {[%clk
0:00:42.4]} 22... Bc6 {[%clk 0:02:17.5]} 23. Qe6 {[%clk 0:00:31.6]} 23... Bxe4
{[%clk 0:02:17.4]} 24. Rxe4 {[%clk 0:00:30.9]} 24... Nf3+ {[%clk 0:02:18]} 0-1

[Event "Early-Titled-Tuesday-Blitz-March-05-2024"]
[Site "Chess.com"]
[Date "2024.03.05"]
[Round "3"]
[White "andrzej"]
[Black "A-Fier"]
[Result "1-0"]
[WhiteElo "2539"]
[BlackElo "2910"]
[TimeControl "180+1"]
[EndTime "8:28:59 PST"]
[Termination "andrzej won by resignation"]

1. e4 {[%clk 0:03:00.9]} 1... Nf6 {[%clk 0:03:00.9]} 2. e5 {[%clk 0:03:00.9]}
2... Nd5 {[%clk 0:03:01.4]} 3. d4 {[%clk 0:03:01.6]} 3... d6 {[%clk 0:03:02]} 4.
c4 {[%clk 0:03:02.3]} 4... Nb6 {[%clk 0:03:02.2]} 5. f4 {[%clk 0:03:03]} 5...
dxe5 {[%clk 0:02:58.5]} 6. fxe5 {[%clk 0:03:03.1]} 6... c5 {[%clk 0:02:59.4]} 7.
d5 {[%clk 0:03:00.5]} 7... e6 {[%clk 0:03:00]} 8. Nc3 {[%clk 0:02:57.5]} 8...
exd5 {[%clk 0:03:00.3]} 9. cxd5 {[%clk 0:02:57.1]} 9... c4 {[%clk 0:03:01.2]}
10. d6 {[%clk 0:02:46.9]} 10... Nc6 {[%clk 0:03:01.1]} 11. Bf4 {[%clk
0:02:40.7]} 11... g5 {[%clk 0:03:01.1]} 12. Bg3 {[%clk 0:02:40.8]} 12... Be6
{[%clk 0:02:58.9]} 13. Nf3 {[%clk 0:02:37.6]} 13... Bg7 {[%clk 0:02:58.6]} 14.
h3 {[%clk 0:02:21.1]} 14... f6 {[%clk 0:02:52.3]} 15. Nd4 {[%clk 0:02:07]} 15...
Nxd4 {[%clk 0:02:51.6]} 16. Qxd4 {[%clk 0:02:07]} 16... O-O {[%clk 0:02:49.3]}
17. O-O-O {[%clk 0:01:59.7]} 17... Nd7 {[%clk 0:02:46.6]} 18. Bxc4 {[%clk
0:01:56.5]} 18... Re8 {[%clk 0:02:43.4]} 19. Bxe6+ {[%clk 0:01:50.5]} 19... Rxe6
{[%clk 0:02:44.3]} 20. Qd5 {[%clk 0:01:49.9]} 20... Qe8 {[%clk 0:02:39]} 21.
Rhe1 {[%clk 0:01:40.2]} 21... f5 {[%clk 0:02:35.4]} 22. Bh2 {[%clk 0:01:24.2]}
22... Qf7 {[%clk 0:02:33.4]} 23. Qxb7 {[%clk 0:01:21]} 23... Rae8 {[%clk
0:02:32.9]} 24. Nd5 {[%clk 0:01:19]} 24... f4 {[%clk 0:02:21.9]} 25. Ne7+ {[%clk
0:01:15.2]} 25... R6xe7 {[%clk 0:02:11.2]} 26. dxe7 {[%clk 0:01:13.8]} 26...
Nxe5 {[%clk 0:02:12.1]} 27. Rd8 {[%clk 0:00:49.6]} 27... Bf6 {[%clk 0:02:02.1]}
28. Rxe8+ {[%clk 0:00:45.8]} 28... Qxe8 {[%clk 0:02:02.4]} 29. Rxe5 {[%clk
0:00:42.7]} 29... Bxe5 {[%clk 0:01:54]} 30. Qd5+ {[%clk 0:00:43]} 30... Kg7
{[%clk 0:01:54.6]} 31. Qxe5+ {[%clk 0:00:43.1]} 31... Kf7 {[%clk 0:01:54.4]} 32.
Qf5+ {[%clk 0:00:35.9]} 32... Kg7 {[%clk 0:01:54.6]} 33. Qxg5+ {[%clk
0:00:35.8]} 1-0

[Event "Early-Titled-Tuesday-Blitz-March-05-2024"]
[Site "Chess.com"]
[Date "2024.03.05"]
[Round "3"]
[White "DonJuanEGenaro"]
[Black "IngOscarArdila"]
[Result "0-1"]
[WhiteElo "1968"]
[BlackElo "2331"]
[TimeControl "180+1"]
[EndTime "8:29:06 PST"]
[Termination "IngOscarArdila won by resignation"]

1. d4 {[%clk 0:03:00]} 1... Nf6 {[%clk 0:02:59.8]} 2. Nf3 {[%clk 0:02:59.3]}
2... e6 {[%clk 0:02:57.4]} 3. g3 {[%clk 0:02:57.6]} 3... Be7 {[%clk 0:02:58]} 4.
Bg2 {[%clk 0:02:57.6]} 4... O-O {[%clk 0:02:58.9]} 5. O-O {[%clk 0:02:57.4]}
5... d6 {[%clk 0:02:59.4]} 6. c4 {[%clk 0:02:57.3]} 6... Nbd7 {[%clk 0:03:00]}
7. Nc3 {[%clk 0:02:56.9]} 7... c6 {[%clk 0:03:00.5]} 8. e4 {[%clk 0:02:56.1]}
8... e5 {[%clk 0:03:00]} 9. Be3 {[%clk 0:02:45]} 9... Qc7 {[%clk 0:03:00.1]} 10.
Qd2 {[%clk 0:02:39.7]} 10... Re8 {[%clk 0:02:59.8]} 11. Rfd1 {[%clk 0:02:38.3]}
11... Nf8 {[%clk 0:02:58.4]} 12. b4 {[%clk 0:02:10]} 12... a5 {[%clk 0:02:55.7]}
13. a3 {[%clk 0:02:08.2]} 13... Bg4 {[%clk 0:02:54.6]} 14. c5 {[%clk 0:02:02.4]}
14... dxc5 {[%clk 0:02:47]} 15. dxe5 {[%clk 0:01:53.9]} 15... Bxf3 {[%clk
0:02:28]} 16. exf6 {[%clk 0:01:52.8]} 16... Bxd1 {[%clk 0:02:27.7]} 17. fxe7
{[%clk 0:01:52.1]} 17... Rxe7 {[%clk 0:02:16.1]} 18. Rxd1 {[%clk 0:01:32.6]}
18... cxb4 {[%clk 0:02:13.4]} 19. Na4 {[%clk 0:01:25.7]} 19... bxa3 {[%clk
0:02:02]} 20. Bb6 {[%clk 0:01:08.6]} 20... Qe5 {[%clk 0:01:52.3]} 21. Bd4 {[%clk
0:00:27.5]} 21... Qb5 {[%clk 0:01:45.5]} 22. Qg5 {[%clk 0:00:20.1]} 22... Qxg5
{[%clk 0:01:44]} 0-1

[Event "Early-Titled-Tuesday-Blitz-March-05-2024"]
[Site "Chess.com"]
[Date "2024.03.05"]
[Round "3"]
[White "DrCeltic"]
[Black "Akylbek2021"]
[Result "0-1"]
[WhiteElo "2481"]
[BlackElo "2290"]
[TimeControl "180+1"]
[EndTime "8:29:10 PST"]
[Termination "Akylbek2021 won by resignation"]

1. e4 {[%clk 0:02:59.8]} 1... Nc6 {[%clk 0:03:00.1]} 2. Nf3 {[%clk 0:02:59.6]}
2... e5 {[%clk 0:03:00.1]} 3. Bb5 {[%clk 0:02:59.9]} 3... a6 {[%clk 0:03:00.7]}
4. Ba4 {[%clk 0:03:00.3]} 4... Nf6 {[%clk 0:03:00.9]} 5. O-O {[%clk 0:03:00.9]}
5... Be7 {[%clk 0:03:01.5]} 6. Re1 {[%clk 0:03:01.5]} 6... b5 {[%clk 0:03:02.2]}
7. Bb3 {[%clk 0:03:02.4]} 7... O-O {[%clk 0:03:02.1]} 8. a4 {[%clk 0:03:02.9]}
8... Rb8 {[%clk 0:03:00.8]} 9. d3 {[%clk 0:03:02.7]} 9... d6 {[%clk 0:02:59.8]}
10. Bg5 {[%clk 0:03:02.3]} 10... h6 {[%clk 0:02:59.7]} 11. Bxf6 {[%clk
0:03:02.6]} 11... Bxf6 {[%clk 0:03:00.6]} 12. Nc3 {[%clk 0:03:02.9]} 12... g6
{[%clk 0:02:56.9]} 13. h3 {[%clk 0:03:00.4]} 13... Bg7 {[%clk 0:02:52.7]} 14.
Nd5 {[%clk 0:02:57.1]} 14... Be6 {[%clk 0:02:51.6]} 15. c3 {[%clk 0:02:54.8]}
15... Kh7 {[%clk 0:02:46.5]} 16. axb5 {[%clk 0:02:54.7]} 16... axb5 {[%clk
0:02:46.2]} 17. Ra6 {[%clk 0:02:48.7]} 17... Ne7 {[%clk 0:02:42.7]} 18. Ne3
{[%clk 0:02:24]} 18... Qd7 {[%clk 0:02:29.5]} 19. d4 {[%clk 0:02:22.2]} 19...
Bxb3 {[%clk 0:02:26.3]} 20. Qxb3 {[%clk 0:02:20.7]} 20... b4 {[%clk 0:02:03.7]}
21. dxe5 {[%clk 0:02:14.3]} 21... bxc3 {[%clk 0:02:02.3]} 22. Qxc3 {[%clk
0:02:09.7]} 22... dxe5 {[%clk 0:01:56.1]} 23. Rd1 {[%clk 0:02:04.9]} 23... Qb5
{[%clk 0:01:53.1]} 24. Ra7 {[%clk 0:02:01.8]} 24... Nc6 {[%clk 0:01:36.7]} 25.
Rxc7 {[%clk 0:01:36.5]} 25... Nd4 {[%clk 0:01:36.9]} 26. Nd5 {[%clk 0:01:29.6]}
26... Qxb2 {[%clk 0:01:33.3]} 27. Qe3 {[%clk 0:01:06.1]} 27... Rb3 {[%clk
0:01:24.7]} 28. Rc3 {[%clk 0:01:05.9]} 28... Rxc3 {[%clk 0:01:20.3]} 29. Nxc3
{[%clk 0:01:04.3]} 29... Qxc3 {[%clk 0:01:20.5]} 30. Nxd4 {[%clk 0:01:02.1]}
30... exd4 {[%clk 0:01:19.5]} 0-1

[Event "Early-Titled-Tuesday-Blitz-March-05-2024"]
[Site "Chess.com"]
[Date "2024.03.05"]
[Round "3"]
[White "Chesstiger64"]
[Black "FischerKasparow"]
[Result "1/2-1/2"]
[WhiteElo "2357"]
[BlackElo "2073"]
[TimeControl "180+1"]
[EndTime "8:29:14 PST"]
[Termination "Game drawn by repetition"]

1. d4 {[%clk 0:02:31.1]} 1... c5 {[%clk 0:02:59.9]} 2. d5 {[%clk 0:02:29.5]}
2... Nf6 {[%clk 0:02:59.9]} 3. Nc3 {[%clk 0:02:27.4]} 3... e6 {[%clk 0:02:58.9]}
4. e4 {[%clk 0:02:27.5]} 4... d6 {[%clk 0:02:57.9]} 5. Nf3 {[%clk 0:02:26.9]}
5... exd5 {[%clk 0:02:56.7]} 6. exd5 {[%clk 0:02:26.4]} 6... Be7 {[%clk
0:02:57.2]} 7. Bd3 {[%clk 0:02:24.5]} 7... O-O {[%clk 0:02:56.8]} 8. Nd2 {[%clk
0:02:24.3]} 8... Na6 {[%clk 0:02:54.2]} 9. Nc4 {[%clk 0:02:19.3]} 9... Nc7
{[%clk 0:02:44.3]} 10. Qf3 {[%clk 0:02:18.9]} 10... b5 {[%clk 0:02:41.8]} 11.
Na5 {[%clk 0:02:17.5]} 11... b4 {[%clk 0:02:33.5]} 12. Nc6 {[%clk 0:02:16.4]}
12... Qd7 {[%clk 0:02:33]} 13. Ne4 {[%clk 0:02:03.5]} 13... Nfxd5 {[%clk
0:01:49.1]} 14. Nxe7+ {[%clk 0:02:02.2]} 14... Qxe7 {[%clk 0:01:49.2]} 15. O-O
{[%clk 0:02:01.9]} 15... Be6 {[%clk 0:01:39.6]} 16. Re1 {[%clk 0:02:00.9]} 16...
Nf6 {[%clk 0:01:24.5]} 17. Bg5 {[%clk 0:01:58.9]} 17... Ncd5 {[%clk 0:01:18.5]}
18. c4 {[%clk 0:01:49.4]} 18... bxc3 {[%clk 0:01:17.1]} 19. bxc3 {[%clk
0:01:49.9]} 19... h6 {[%clk 0:01:16.5]} 20. c4 {[%clk 0:01:43.7]} 20... hxg5
{[%clk 0:01:12.7]} 21. cxd5 {[%clk 0:01:42.5]} 21... Nxd5 {[%clk 0:01:07.7]} 22.
Nxc5 {[%clk 0:01:38.4]} 22... dxc5 {[%clk 0:00:46.3]} 23. Qxd5 {[%clk
0:01:38.2]} 23... Bxd5 {[%clk 0:00:45]} 24. Rxe7 {[%clk 0:01:38.1]} 24... Rfe8
{[%clk 0:00:31.1]} 25. Rc7 {[%clk 0:01:36.7]} 25... Rec8 {[%clk 0:00:27.7]} 26.
Re7 {[%clk 0:01:35.3]} 26... Re8 {[%clk 0:00:27.6]} 27. Rc7 {[%clk 0:01:35.2]}
27... Rec8 {[%clk 0:00:27.3]} 28. Re7 {[%clk 0:01:35.2]} 28... Re8 {[%clk
0:00:27.4]} 1/2-1/2

[Event "Early-Titled-Tuesday-Blitz-March-05-2024"]
[Site "Chess.com"]
[Date "2024.03.05"]
[Round "3"]
[White "bescmelasti"]
[Black "ContrVersia"]
[Result "0-1"]
[WhiteElo "2644"]
[BlackElo "2874"]
[TimeControl "180+1"]
[EndTime "8:29:22 PST"]
[Termination "ContrVersia won by resignation"]

1. e4 {[%clk 0:03:00.9]} 1... e5 {[%clk 0:02:58.7]} 2. Nf3 {[%clk 0:03:01]} 2...
Nc6 {[%clk 0:02:59.2]} 3. Bc4 {[%clk 0:03:01.2]} 3... Bc5 {[%clk 0:02:58.7]} 4.
c3 {[%clk 0:03:01.2]} 4... Nf6 {[%clk 0:02:58.3]} 5. d4 {[%clk 0:03:01.6]} 5...
exd4 {[%clk 0:02:59.2]} 6. b4 {[%clk 0:03:01.8]} 6... Bb6 {[%clk 0:02:55.8]} 7.
e5 {[%clk 0:03:01.8]} 7... d5 {[%clk 0:02:56.3]} 8. exf6 {[%clk 0:03:01.8]} 8...
dxc4 {[%clk 0:02:56.5]} 9. Qe2+ {[%clk 0:02:58.4]} 9... Be6 {[%clk 0:02:55.4]}
10. fxg7 {[%clk 0:02:58.4]} 10... Rg8 {[%clk 0:02:53.9]} 11. b5 {[%clk
0:02:48.9]} 11... d3 {[%clk 0:02:47.6]} 12. Qe4 {[%clk 0:02:45.7]} 12... Ne7
{[%clk 0:02:40.3]} 13. O-O {[%clk 0:01:37.1]} 13... Rxg7 {[%clk 0:02:35.1]} 14.
Nbd2 {[%clk 0:01:27.3]} 14... Qd5 {[%clk 0:02:31.2]} 15. Re1 {[%clk 0:00:57.5]}
15... O-O-O {[%clk 0:02:25]} 16. Qxd5 {[%clk 0:00:52.6]} 16... Nxd5 {[%clk
0:02:22.7]} 17. Nxc4 {[%clk 0:00:52.5]} 17... Bc5 {[%clk 0:02:08]} 18. Ne3
{[%clk 0:00:34.1]} 18... Nf4 {[%clk 0:01:57.9]} 19. g3 {[%clk 0:00:28]} 19...
Ne2+ {[%clk 0:01:55.8]} 20. Kf1 {[%clk 0:00:26.9]} 20... Bh3+ {[%clk 0:01:52.3]}
21. Ng2 {[%clk 0:00:26.9]} 21... Rg6 {[%clk 0:01:44.2]} 22. Bd2 {[%clk
0:00:17.4]} 22... Rf6 {[%clk 0:01:41.8]} 23. Bf4 {[%clk 0:00:08]} 23... Nxf4
{[%clk 0:01:39.7]} 24. gxf4 {[%clk 0:00:08.9]} 24... Rxf4 {[%clk 0:01:40.1]} 0-1